bitfinex/quotes_SOLUSD_20250619
["timestamp","ask_amount","ask_price","bid_price","bid_amount"]
[1750348595073,5.17722604,143.31,143.28,26.71189845]
[1750348595213,5.18215352,143.31,143.28,26.71189845]
[1750348595614,19.73275583,143.32,143.28,26.71189845]
[1750348595813,5.18135421,143.31,143.28,26.71189845]
[1750348596022,24.91411004,143.31,143.28,6.97914262]
[1750348596215,19.73275583,143.32,143.28,26.71189845]
[1750348596415,5.18144707,143.31,143.28,26.71189845]
[1750348596916,5.18144707,143.3,143.28,18.4937739]
[1750348597119,5.18144707,143.31,143.28,18.4937739]
[1750348597301,7.34300842,143.33,143.28,18.4937739]
[1750348597501,11.51463128,143.31,143.28,6.97914262]
[1750348597725,5.18665108,143.3,143.28,6.97914262]
[1750348598314,5.18752956,143.31,143.28,6.97914262]
[1750348598516,5.18752956,143.3,143.28,6.97914262]
[1750348598714,16.70216084,143.31,143.28,6.97914262]
[1750348598931,24.03796762,143.32,143.28,6.97914262]
[1750348599133,5.18752956,143.31,143.28,6.97914262]
[1750348599436,11.51463128,143.29,143.26,6.98031551]
[1750348599637,11.51463128,143.29,143.25,6.98056607]
[1750348599638,11.51463128,143.28,143.25,6.98056607]
[1750348599953,11.51463128,143.27,143.25,6.98056607]
[1750348600128,11.51463128,143.28,143.25,6.98056607]
[1750348600840,16.70216084,143.28,143.25,6.98056607]
[1750348601231,16.70639974,143.28,143.25,6.98056607]
[1750348601429,5.19176846,143.28,143.26,11.51463128]
[1750348601644,21.45714613,143.29,143.25,18.49519735]
[1750348601944,11.51463128,143.26,143.24,6.9810512]
[1750348602731,11.51463128,143.27,143.24,6.9810512]
[1750348602957,5.19176846,143.27,143.24,18.49568248]
[1750348603315,16.70639974,143.27,143.23,6.98177756]
[1750348603631,16.70639974,143.27,143.23,18.49640884]
[1750348603632,5.19176846,143.26,143.23,18.49640884]
[1750348603946,11.51463128,143.28,143.24,11.51463128]
[1750348604133,5.19971272,143.27,143.24,11.51463128]
[1750348604356,4.76360509,143.28,143.26,11.51463128]
[1750348604542,5.19915191,143.27,143.26,11.51463128]
[1750348604722,5.19915191,143.28,143.26,11.51463128]
[1750348604928,5.19931598,143.28,143.26,11.51463128]
[1750348605129,5.19931598,143.28,143.23,24.43622146]
[1750348605631,5.19931598,143.28,143.26,11.51463128]
[1750348606725,17.96293647,143.35,143.27,37.51463128]
[1750348606934,12.5680278,143.34,143.27,26.0]
[1750348607249,5.20192699,143.33,143.31,11.51463128]
[1750348607544,5.20192699,143.32,143.31,11.51463128]
[1750348607722,5.20192699,143.33,143.28,24.42769402]
[1750348607925,5.20192699,143.32,143.31,11.51463128]
[1750348608246,7.36606322,143.34,143.31,11.51463128]
[1750348608247,5.20192699,143.33,143.31,11.51463128]
[1750348608422,7.36585065,143.34,143.31,11.51463128]
[1750348608627,5.20142764,143.33,143.32,11.51463128]
[1750348608855,5.20142764,143.33,143.32,19.72963037]
[1750348609158,5.20142764,143.34,143.32,19.72963037]
[1750348609330,12.57109963,143.35,143.31,19.72963037]
[1750348609331,5.20142764,143.33,143.31,19.72963037]
[1750348609531,12.56705703,143.34,143.31,26.70712959]
[1750348609732,5.20163367,143.33,143.31,26.70712959]
[1750348610037,5.20163367,143.32,143.31,26.70712959]
[1750348610359,5.20163367,143.33,143.31,26.70712959]
[1750348610549,7.36542336,143.34,143.31,26.70712959]
[1750348610732,5.20214377,143.33,143.31,26.70712959]
[1750348610928,5.20421484,143.32,143.31,26.70712959]
[1750348611238,5.20421484,143.33,143.31,26.70712959]
[1750348611440,5.20421484,143.32,143.31,26.70712959]
[1750348611642,5.20421484,143.33,143.31,26.70712959]
[1750348611841,5.20421484,143.32,143.31,26.70712959]
[1750348612035,5.20421484,143.33,143.31,26.70712959]
[1750348612236,5.20421484,143.33,143.32,19.72963037]
[1750348612459,5.20421484,143.34,143.32,19.72963037]
[1750348612757,7.36694712,143.35,143.31,6.97749922]
[1750348613050,5.20646467,143.34,143.33,19.72963037]
[1750348613562,5.20646467,143.34,143.33,26.7065368]
[1750348614647,5.20646467,143.35,143.33,6.97690643]
[1750348614967,4.76467244,143.36,143.34,19.72963037]
[1750348615154,9.26227468,143.37,143.35,19.72963037]
[1750348615331,5.20674579,143.36,143.35,26.70535296]
[1750348616244,6.66,143.37,143.35,26.70535296]
[1750348617155,5.20373594,143.36,143.35,26.70535296]
[1750348617861,5.20524898,143.38,143.35,26.70535296]
[1750348618059,11.61279421,143.4,143.35,6.97572259]
[1750348618060,5.20465624,143.37,143.35,6.97572259]
[1750348618239,5.20465624,143.38,143.35,24.41555516]
[1750348618433,7.35641136,143.39,143.35,24.41555516]
[1750348618637,5.20413009,143.38,143.35,24.41555516]
[1750348618884,5.19920376,143.39,143.35,24.41555516]
[1750348619367,5.19920376,143.39,143.38,26.70410379]
[1750348620167,5.19920376,143.39,143.38,6.97447342]
[1750348620367,11.61279421,143.4,143.38,26.70410379]
[1750348620567,16.81074646,143.4,143.39,19.72963037]
[1750348620874,11.61279421,143.4,143.39,19.72963037]
[1750348621245,2.196015,143.4,143.39,26.70361739]
[1750348625147,2.196015,143.4,143.39,45.35326625]
[1750348625345,2.196015,143.4,143.39,71.35326625]
[1750348625669,45.72963037,143.5,143.42,26.0]
[1750348625843,5.17866359,143.49,143.46,26.69999802]
[1750348626042,5.17866359,143.49,143.46,19.72963037]
[1750348626439,5.17866359,143.49,143.46,26.70019442]
[1750348626677,45.72963037,143.5,143.46,26.70019442]
[1750348627676,26.0,143.5,143.46,26.70019442]
[1750348627979,45.72963037,143.5,143.46,6.97056405]
[1750348628359,45.72963037,143.5,143.46,26.70019442]
[1750348628760,26.0,143.5,143.46,26.70019442]
[1750348628969,45.72963037,143.5,143.46,26.70019442]
[1750348630580,26.0,143.5,143.46,26.70019442]
[1750348630957,26.0,143.5,143.46,18.45656671]
[1750348631155,26.0,143.5,143.46,6.97056405]
[1750348631980,11.48600266,143.49,143.45,18.4569827]
[1750348633291,55.4,143.5,143.45,18.4569827]
[1750348633580,11.48600266,143.49,143.45,18.4569827]
[1750348634379,11.48600266,143.49,143.45,6.97098004]
[1750348634576,11.48600266,143.49,143.45,18.4569827]
[1750348636261,11.48600266,143.49,143.45,6.97098004]
[1750348636457,11.48600266,143.46,143.38,6.97447342]
[1750348636787,11.48600266,143.44,143.4,11.48600266]
[1750348637158,11.48600266,143.45,143.41,11.48600266]
[1750348637489,11.48600266,143.45,143.42,6.97252823]
[1750348637977,40.84600266,143.46,143.42,18.45853089]
[1750348638392,29.36,143.46,143.43,11.48600266]
[1750348638897,85.47565152,143.49,143.45,11.48600266]
[1750348639262,73.98964886,143.49,143.45,11.48600266]
[1750348639597,85.47565152,143.49,143.45,18.45696793]
[1750348639963,56.13565152,143.49,143.45,18.45696793]
[1750348640597,40.5053,143.51,143.46,11.48600266]
[1750348640798,75.20550266,143.51,143.47,11.48600266]
[1750348641090,19.84550266,143.51,143.47,11.48600266]
[1750348641589,19.84550266,143.51,143.47,18.45582279]
[1750348643389,19.84550266,143.51,143.45,11.48600266]
[1750348643390,11.48600266,143.49,143.45,11.48600266]
[1750348644286,11.48600266,143.48,143.44,11.48600266]
[1750348644491,11.48600266,143.48,143.45,6.97107005]
[1750348644676,11.48600266,143.49,143.45,6.97107005]
[1750348645753,18.45517856,143.49,143.45,6.97107005]
[1750348645982,11.48600266,143.46,143.43,6.97178278]
[1750348646186,11.48600266,143.45,143.41,18.45901709]
[1750348649280,25.61974713,143.47,143.41,18.45901709]
[1750348649490,25.61974713,143.47,143.38,25.70674173]
[1750348649491,16.64430843,143.46,143.42,11.48600266]
[1750348650100,5.15830577,143.46,143.39,24.40895459]
[1750348650376,16.64430843,143.47,143.43,11.48600266]
[1750348650586,11.48600266,143.46,143.42,11.48600266]
[1750348651270,16.64446091,143.46,143.42,11.48600266]
[1750348651487,11.48600266,143.45,143.41,18.4585934]
[1750348651699,16.64446091,143.45,143.41,18.4585934]
[1750348653104,16.65420972,143.45,143.41,18.4585934]
[1750348653307,5.16820706,143.45,143.42,11.48600266]
[1750348653908,16.65420972,143.46,143.42,11.48600266]
[1750348654098,5.16820706,143.45,143.42,11.48600266]
[1750348654811,5.16820706,143.44,143.42,11.48600266]
[1750348655134,5.16820706,143.45,143.42,11.48600266]
[1750348655290,18.45672157,143.46,143.42,18.45830601]
[1750348655493,5.17327035,143.45,143.42,18.45830601]
[1750348656307,5.17327035,143.44,143.42,18.45830601]
[1750348656501,5.17327035,143.45,143.42,18.45830601]
[1750348656699,5.17327035,143.44,143.42,18.45830601]
[1750348656902,14.07686697,143.46,143.42,18.45830601]
[1750348657205,5.18142765,143.45,143.42,18.45830601]
[1750348657395,5.18142765,143.44,143.42,6.97230335]
[1750348657716,5.18142765,143.46,143.43,11.48600266]
[1750348658020,7.75858291,143.49,143.45,11.48600266]
[1750348658204,5.18340352,143.48,143.45,11.48600266]
[1750348658525,5.18340352,143.47,143.45,11.48600266]
[1750348658685,5.18340352,143.46,143.45,11.48600266]
[1750348659186,5.18340352,143.46,143.39,85.27888973]
[1750348659384,5.18340352,143.45,143.43,11.48600266]
[1750348659615,5.18340352,143.44,143.43,11.48600266]
[1750348660187,5.18340352,143.44,143.43,18.45804477]
[1750348663326,5.20304277,143.44,143.43,18.45804477]
[1750348665287,5.20304277,143.44,143.42,18.45831499]
[1750348665596,13.01865184,143.43,143.4,11.48600266]
[1750348665922,7.80616229,143.42,143.4,11.48600266]
[1750348666098,5.20304277,143.41,143.4,11.48600266]
[1750348666293,7.80899258,143.41,143.4,11.48600266]
[1750348666501,5.20304277,143.41,143.4,11.48600266]
[1750348667314,5.2108888,143.41,143.4,11.48600266]
[1750348667619,5.2108888,143.41,143.4,18.45950335]
[1750348670235,5.2081642,143.41,143.4,18.45950335]
[1750348672923,7.81904819,143.43,143.4,18.45950335]
[1750348673129,5.21505281,143.42,143.4,6.97350069]
[1750348673303,5.21505281,143.41,143.4,6.97350069]
[1750348673505,7.81912496,143.44,143.4,6.97350069]
[1750348673706,7.82283746,143.43,143.4,6.97350069]
[1750348674007,5.21527129,143.42,143.4,6.97350069]
[1750348674201,2.60756617,143.43,143.4,6.97350069]
[1750348674422,2.60756617,143.43,143.42,11.48600266]
[1750348674623,7.82262718,143.43,143.42,11.48600266]
[1750348674799,5.21506101,143.43,143.42,11.48600266]
[1750348675004,5.21506101,143.43,143.42,18.45853089]
[1750348677669,5.21506101,143.43,143.42,29.94453355]
[1750348677847,7.82497203,143.47,143.42,47.37585414]
[1750348678132,7.8258161,143.46,143.43,11.48600266]
[1750348678343,5.21708862,143.45,143.43,11.48600266]
[1750348678520,7.82530943,143.48,143.43,11.48600266]
[1750348678709,13.04274687,143.47,143.43,11.48600266]
[1750348678912,5.21744329,143.46,143.43,11.48600266]
[1750348679131,5.21744329,143.45,143.44,6.97155605]
[1750348679328,5.21744329,143.45,143.44,18.45755871]
[1750348680329,5.21744329,143.45,143.44,6.97155605]
[1750348680532,7.82485882,143.45,143.44,18.45755871]
[1750348681409,5.21744329,143.45,143.44,18.45755871]
[1750348681611,7.82485882,143.45,143.44,18.45755871]
[1750348681814,5.21499615,143.45,143.44,18.45755871]
[1750348682516,7.82249422,143.45,143.44,18.45755871]
[1750348682711,5.21499615,143.45,143.44,18.45755871]
[1750348683543,7.82249422,143.45,143.44,18.45755871]
[1750348683740,5.21499615,143.45,143.44,18.45755871]
[1750348684224,7.82249422,143.45,143.44,18.45755871]
[1750348684426,5.21301326,143.45,143.44,18.45755871]
[1750348684941,7.81952007,143.45,143.44,18.45755871]
[1750348685124,5.21301326,143.45,143.44,18.45755871]
[1750348685542,7.81952007,143.45,143.44,18.45755871]
[1750348685837,5.21301326,143.45,143.44,18.45755871]
[1750348686228,7.81979414,143.45,143.44,18.45755871]
[1750348686428,5.21301326,143.45,143.44,18.45755871]
[1750348686819,7.81979414,143.45,143.44,18.45755871]
[1750348687738,19.3057968,143.45,143.39,6.97398702]
[1750348687938,11.48600266,143.43,143.39,18.45998968]
[1750348688246,11.48600266,143.41,143.37,11.48600266]
[1750348688547,13.03398911,143.4,143.37,11.48600266]
[1750348688731,5.21301326,143.39,143.37,11.48600266]
[1750348688926,2.60583453,143.39,143.38,11.48600266]
[1750348689136,7.81744235,143.39,143.38,11.48600266]
[1750348689329,7.81744235,143.39,143.36,6.97544642]
[1750348689533,16.69655236,143.41,143.37,11.48600266]
[1750348689534,5.21160782,143.38,143.37,11.48600266]
[1750348689741,5.21160782,143.38,143.37,18.46096255]
[1750348689949,5.21160782,143.38,143.36,18.46130794]
[1750348690134,5.20666352,143.37,143.36,18.46130794]
[1750348691449,5.20666352,143.37,143.36,6.97530528]
[1750348691650,5.20666352,143.37,143.36,18.46130794]
[1750348691849,7.81375875,143.4,143.36,18.46130794]
[1750348692027,5.20215774,143.39,143.38,11.48600266]
[1750348692734,7.81375875,143.42,143.38,11.48600266]
[1750348692939,7.80406068,143.41,143.4,11.48600266]
[1750348694751,7.80406068,143.41,143.39,6.97376962]
[1750348697137,2.60018596,143.39,143.36,18.46106231]
[1750348697342,5.19594409,143.38,143.36,18.46106231]
[1750348697539,5.19594409,143.37,143.31,25.58674369]
[1750348697735,11.48600266,143.37,143.33,11.48600266]
[1750348697935,5.19518438,143.36,143.33,11.48600266]
[1750348698258,5.19518438,143.35,143.33,11.48600266]
[1750348698559,5.19518438,143.36,143.34,11.48600266]
[1750348698737,5.18824525,143.36,143.35,11.48600266]
[1750348699280,5.18824525,143.37,143.35,11.48600266]
[1750348699437,5.18824525,143.36,143.34,11.48600266]
[1750348699636,7.78213483,143.37,143.35,11.48600266]
[1750348699831,5.18824525,143.37,143.36,11.48600266]
[1750348700756,5.18824525,143.38,143.36,18.46118527]
[1750348701254,5.18824525,143.39,143.36,18.46118527]
[1750348701633,5.18824525,143.38,143.36,18.46118527]
[1750348701848,5.18824525,143.38,143.31,26.0]
[1750348702038,16.67424791,143.37,143.33,11.48600266]
[1750348702356,11.48600266,143.37,143.33,11.48600266]
[1750348702530,19.26687137,143.38,143.34,11.48600266]
[1750348702731,19.26687137,143.38,143.34,18.46223657]
[1750348702931,16.67424791,143.38,143.34,18.46223657]
[1750348703857,18.46058805,143.38,143.34,18.46223657]
[1750348704155,30.13565152,143.36,143.3,32.62809318]
[1750348704371,59.23565152,143.36,143.32,11.48600266]
[1750348704728,59.23565152,143.36,143.32,18.46334699]
[1750348705173,5.17930316,143.35,143.32,18.46334699]
[1750348705327,16.66530582,143.35,143.3,39.60624932]
[1750348705532,11.48600266,143.34,143.3,44.11409584]
[1750348706064,11.48600266,143.33,143.29,11.48600266]
[1750348706442,11.48600266,143.33,143.25,43.45183648]
[1750348706443,16.65932378,143.33,143.25,43.45183648]
[1750348706768,18.64964886,143.33,143.3,11.48600266]
[1750348706970,37.11256812,143.33,143.29,18.46477817]
[1750348707464,30.13565152,143.33,143.29,18.46477817]
[1750348707956,18.64964886,143.33,143.29,18.46477817]
[1750348708149,30.13565152,143.33,143.29,18.46477817]
[1750348708349,34.5968628,143.34,143.29,18.46477817]
[1750348708350,37.48600266,143.34,143.3,11.48600266]
[1750348708558,29.08,143.33,143.3,11.48600266]
[1750348708770,29.08,143.33,143.3,18.46416629]
[1750348711647,29.08,143.33,143.27,17.44836704]
[1750348711648,40.56600266,143.33,143.28,6.97934115]
[1750348711859,40.56600266,143.33,143.29,11.48600266]
[1750348713643,40.56600266,143.33,143.3,6.97836706]
[1750348714749,55.04,143.34,143.31,11.48600266]
[1750348715764,55.04,143.34,143.3,11.48600266]
[1750348717168,26.0,143.34,143.31,6.97788012]
[1750348717354,55.02,143.34,143.31,6.97788012]
[1750348717868,55.02,143.34,143.31,18.46388278]
[1750348719075,55.02,143.34,143.31,6.97788012]
[1750348719254,55.02,143.34,143.31,11.48600266]
[1750348719662,55.0,143.34,143.31,11.48600266]
[1750348720195,55.0,143.34,143.26,59.33268183]
[1750348720371,55.0,143.34,143.31,11.48600266]
[1750348721564,55.0,143.34,143.31,18.46369763]
[1750348721764,66.48600266,143.34,143.31,6.97769497]
[1750348721961,73.46253688,143.34,143.3,11.48600266]
[1750348722162,73.46253688,143.34,143.25,114.2]
[1750348722163,11.48600266,143.33,143.29,11.48600266]
[1750348722346,28.98,143.32,143.29,11.48600266]
[1750348723268,28.98,143.32,143.3,11.48600266]
[1750348723473,28.98,143.32,143.3,18.46420367]
[1750348725162,28.98,143.32,143.31,11.48600266]
[1750348726752,28.98,143.32,143.31,18.46388278]
[1750348727056,54.94,143.34,143.31,6.97788012]
[1750348727256,54.94,143.34,143.31,18.46388278]
[1750348727875,5.16952432,143.33,143.26,24.43110428]
[1750348728070,5.16952432,143.33,143.31,11.48600266]
[1750348728462,5.16854122,143.33,143.31,11.48600266]
[1750348729197,5.16854122,143.33,143.32,6.97739324]
[1750348729372,54.94,143.34,143.32,18.4633959]
[1750348730052,152.7363,143.39,143.33,11.48600266]
[1750348730275,41.86411395,143.38,143.35,11.48600266]
[1750348730453,5.16906342,143.37,143.35,11.48600266]
[1750348730659,5.16906342,143.36,143.35,11.48600266]
[1750348730875,5.16906342,143.36,143.34,11.48600266]
[1750348731584,5.16906342,143.35,143.33,18.46266485]
[1750348731775,5.16906342,143.36,143.33,18.46266485]
[1750348732077,5.17334399,143.36,143.33,18.46266485]
[1750348732477,5.17334399,143.36,143.35,26.0]
[1750348732684,24.42704498,143.36,143.33,26.0]
[1750348732880,36.70359629,143.35,143.33,26.0]
[1750348733088,5.17334399,143.34,143.33,26.0]
[1750348734672,7.76301297,143.34,143.31,11.48600266]
[1750348734870,45.59934665,143.33,143.29,26.0]
[1750348735090,11.48600266,143.31,143.27,11.48600266]
[1750348735272,5.17334399,143.3,143.27,11.48600266]
[1750348735591,34.11334399,143.29,143.26,11.48600266]
[1750348735766,34.11334399,143.29,143.26,18.46629737]
[1750348735767,5.17334399,143.28,143.26,18.46629737]
[1750348735973,5.18093832,143.27,143.26,18.46629737]
[1750348736179,5.18093832,143.28,143.26,18.46629737]
[1750348736360,5.18093832,143.27,143.26,6.98029471]
[1750348736557,5.18093832,143.28,143.26,18.46629737]
[1750348736788,5.18093832,143.27,143.26,18.46629737]
[1750348736967,5.18093832,143.28,143.26,11.48600266]
[1750348737170,5.18093832,143.27,143.26,11.48600266]
[1750348737709,5.17978912,143.28,143.26,11.48600266]
[1750348737897,5.17978912,143.27,143.25,18.46663222]
[1750348738077,2.58974142,143.28,143.25,18.46663222]
[1750348738275,5.17957511,143.27,143.25,18.46663222]
[1750348738475,2.58974142,143.28,143.25,11.48600266]
[1750348738476,5.17957511,143.26,143.25,11.48600266]
[1750348738674,5.17957511,143.27,143.25,11.48600266]
[1750348738874,5.17957511,143.26,143.25,11.48600266]
[1750348739164,5.17957511,143.27,143.24,6.98114182]
[1750348739361,5.17957511,143.26,143.24,11.48600266]
[1750348739662,7.77499197,143.27,143.21,23.55302625]
[1750348739976,5.18332798,143.26,143.23,11.48600266]
[1750348740183,16.19078421,143.27,143.23,11.48600266]
[1750348740370,5.17900193,143.26,143.24,11.48600266]
[1750348740570,4.70478155,143.27,143.24,11.48600266]
[1750348740871,5.17877983,143.26,143.24,18.46728295]
[1750348741073,4.70478155,143.27,143.24,18.46728295]
[1750348741399,5.17814206,143.26,143.24,18.46728295]
[1750348741693,7.29529498,143.27,143.24,18.46728295]
[1750348741893,5.17921174,143.26,143.24,18.46728295]
[1750348742201,4.70478155,143.27,143.25,11.48600266]
[1750348742508,5.17952042,143.26,143.25,11.48600266]
[1750348742869,5.17952042,143.27,143.25,11.48600266]
[1750348743091,38.8269243,143.32,143.26,11.48600266]
[1750348743272,12.4772873,143.31,143.29,11.48600266]
[1750348743471,5.180726,143.3,143.29,11.48600266]
[1750348743677,5.180726,143.3,143.28,11.48600266]
[1750348743991,4.7061983,143.31,143.28,18.46497515]
[1750348744170,5.18076107,143.3,143.28,18.46497515]
[1750348744370,5.18076107,143.29,143.28,18.46497515]
[1750348744681,5.1797161,143.3,143.28,18.46497515]
[1750348744982,5.1797161,143.29,143.28,18.46497515]
[1750348745222,5.1797161,143.3,143.28,18.46497515]
[1750348745393,4.70983898,143.31,143.29,11.48600266]
[1750348745592,5.17853735,143.3,143.29,11.48600266]
[1750348745971,5.17853735,143.3,143.29,18.46485673]
[1750348746166,5.17853735,143.3,143.29,6.97885407]
[1750348747598,5.17853735,143.3,143.29,11.48600266]
[1750348748699,5.17853735,143.3,143.29,18.46485673]
[1750348749505,6.42,143.35,143.29,29.95085939]
[1750348749674,7.77474265,143.34,143.32,11.48600266]
[1750348749880,7.77474265,143.33,143.32,11.48600266]
[1750348750090,7.77474265,143.33,143.31,11.48600266]
[1750348750293,5.18316278,143.32,143.31,11.48600266]
[1750348751612,5.18234038,143.32,143.3,11.48600266]
[1750348751790,5.18234038,143.31,143.3,11.48600266]
[1750348752584,5.18234038,143.31,143.3,18.46436972]
[1750348754196,2.59090035,143.33,143.3,18.46436972]
[1750348754516,2.5922335,143.34,143.32,11.48600266]
[1750348754712,2.5922335,143.34,143.33,11.48600266]
[1750348754921,5.1853861,143.34,143.33,11.48600266]
[1750348755414,5.1853861,143.34,143.3,24.42428471]
[1750348755611,9.0122335,143.35,143.33,11.48600266]
[1750348755908,5.18397358,143.34,143.33,11.48600266]
[1750348756116,5.18397358,143.34,143.32,6.97705051]
[1750348756117,5.18397358,143.34,143.32,18.46305317]
[1750348756289,5.18397358,143.33,143.32,18.46305317]
[1750348756685,5.18397358,143.33,143.32,6.97705051]
[1750348756888,5.18397358,143.33,143.32,18.46305317]
[1750348757201,5.18224912,143.33,143.32,18.46305317]
[1750348757394,9.0122335,143.35,143.32,18.46305317]
[1750348757610,5.18183045,143.34,143.3,24.42428471]
[1750348757804,5.18183045,143.33,143.32,11.48600266]
[1750348759018,5.18183045,143.33,143.32,18.4633959]
[1750348760015,5.18091205,143.33,143.32,18.4633959]
[1750348761601,5.18091205,143.34,143.32,18.4633959]
[1750348761800,2.59045602,143.36,143.32,18.4633959]
[1750348762002,5.18039184,143.35,143.32,18.4633959]
[1750348762318,7.77266061,143.36,143.33,11.48600266]
[1750348762319,5.18039184,143.34,143.33,11.48600266]
[1750348763115,5.18039184,143.34,143.32,6.97739324]
[1750348763322,19.25866327,143.36,143.32,18.4633959]
[1750348763525,19.25866327,143.36,143.33,11.48600266]
[1750348763526,5.17875683,143.35,143.33,11.48600266]
[1750348763727,5.17875683,143.34,143.33,18.46290909]
[1750348765720,5.17778054,143.34,143.33,18.46290909]
[1750348766553,5.17778054,143.35,143.33,18.46290909]
[1750348766723,7.76759809,143.38,143.34,11.48600266]
[1750348766923,5.17840063,143.37,143.36,11.48600266]
[1750348768435,11.48600266,143.37,143.29,88.2]
[1750348768645,11.48600266,143.35,143.31,11.48600266]
[1750348768841,5.17776469,143.34,143.29,6.97885407]
[1750348769039,5.17776469,143.33,143.31,11.48600266]
[1750348769236,40.40600266,143.35,143.31,11.48600266]
[1750348769439,7.76641068,143.34,143.31,11.48600266]
[1750348769644,5.17760712,143.33,143.31,18.46364132]
[1750348769956,5.17760712,143.32,143.31,18.46364132]
[1750348770138,5.17760712,143.33,143.31,18.46364132]
[1750348770325,5.17760712,143.32,143.31,18.46364132]
[1750348770526,5.17760712,143.33,143.31,18.46364132]
[1750348770729,5.17760712,143.32,143.31,18.46364132]
[1750348771052,5.17760712,143.33,143.31,18.46364132]
[1750348771352,5.17760712,143.32,143.31,18.46364132]
[1750348773028,5.17760712,143.32,143.3,11.48600266]
[1750348773250,26.23310079,143.34,143.3,11.48600266]
[1750348773251,2.59119761,143.33,143.3,11.48600266]
[1750348773541,5.18290879,143.32,143.29,18.46485673]
[1750348773844,5.18290879,143.31,143.29,18.46485673]
[1750348774150,11.48600266,143.33,143.29,18.46485673]
[1750348774353,5.18269069,143.32,143.29,18.46485673]
[1750348774553,5.18269069,143.31,143.29,18.46485673]
[1750348774757,5.18269069,143.32,143.29,18.46485673]
[1750348774959,5.18269069,143.31,143.29,18.46485673]
[1750348775142,14.077348,143.33,143.29,18.46485673]
[1750348775143,5.18269069,143.32,143.29,18.46485673]
[1750348775342,5.18269069,143.31,143.29,18.46485673]
[1750348775543,5.18289653,143.32,143.28,6.97920839]
[1750348775765,45.58842744,143.31,143.24,27.6346]
[1750348776071,5.18242478,143.3,143.27,11.48600266]
[1750348776371,5.18242478,143.29,143.26,11.48600266]
[1750348776544,5.18219401,143.28,143.26,11.48600266]
[1750348776737,14.0769355,143.3,143.26,11.48600266]
[1750348776937,5.18228717,143.29,143.26,11.48600266]
[1750348777246,5.18228717,143.28,143.26,11.48600266]
[1750348777440,5.18062639,143.29,143.27,11.48600266]
[1750348777755,28.92,143.3,143.28,18.46534381]
[1750348778143,26.0,143.32,143.28,18.46534381]
[1750348778357,5.18014336,143.31,143.28,18.46534381]
[1750348778564,5.18014336,143.3,143.28,18.46534381]
[1750348778871,2.58906747,143.31,143.28,18.46534381]
[1750348779032,5.17807141,143.3,143.28,18.46534381]
[1750348779238,37.48600266,143.32,143.28,18.46534381]
[1750348779468,5.17811082,143.31,143.28,18.46534381]
[1750348779650,5.17811082,143.3,143.28,18.46534381]
[1750348779848,37.48600266,143.32,143.28,18.46534381]
[1750348780040,5.17728945,143.31,143.28,18.46534381]
[1750348780241,5.17728945,143.3,143.28,18.46534381]
[1750348780440,2.58856223,143.31,143.28,18.46534381]
[1750348780747,5.17709709,143.3,143.28,18.46534381]
[1750348780948,5.17772399,143.29,143.28,18.46534381]
[1750348781143,5.17772399,143.3,143.28,18.46534381]
[1750348781359,5.17772399,143.29,143.28,18.46534381]
[1750348781672,5.17772399,143.29,143.28,6.97934115]
[1750348782173,5.17772399,143.29,143.26,18.46631817]
[1750348782373,5.17772399,143.28,143.26,18.46631817]
[1750348782547,14.07456489,143.3,143.26,18.46631817]
[1750348782876,5.18014611,143.29,143.27,11.48600266]
[1750348783038,23.63984926,143.31,143.27,11.48600266]
[1750348783234,11.48600266,143.3,143.26,18.46631817]
[1750348783737,11.48600266,143.29,143.25,11.48600266]
[1750348783939,11.48600266,143.28,143.24,11.48600266]
[1750348784572,16.66071174,143.28,143.24,18.4672928]
[1750348784936,11.48600266,143.27,143.23,11.48600266]
[1750348785665,5.18079436,143.26,143.23,18.46743176]
[1750348785873,5.18079436,143.25,143.23,18.46743176]
[1750348786044,14.07639984,143.27,143.23,18.46743176]
[1750348786240,5.1749962,143.26,143.23,18.46743176]
[1750348786440,5.1749962,143.25,143.23,18.46743176]
[1750348786658,5.1769222,143.24,143.23,18.46743176]
[1750348786869,5.1769222,143.26,143.23,18.46743176]
[1750348787072,5.1769222,143.25,143.24,11.48600266]
[1750348787260,14.07639984,143.27,143.23,6.9814291]
[1750348787261,5.1769222,143.26,143.23,6.9814291]
[1750348787448,5.1769222,143.25,143.24,11.48600266]
[1750348787771,5.1769222,143.26,143.24,11.48600266]
[1750348787970,2.59039718,143.27,143.24,11.48600266]
[1750348788267,14.07639984,143.28,143.24,11.48600266]
[1750348788450,7.76434872,143.28,143.26,11.48600266]
[1750348788653,5.17395154,143.28,143.27,11.48600266]
[1750348788962,5.17395154,143.28,143.27,18.46583095]
[1750348789158,5.17395154,143.3,143.27,18.46583095]
[1750348789371,5.17395154,143.29,143.27,18.46583095]
[1750348789571,5.17395154,143.3,143.28,11.48600266]
[1750348790457,5.17488612,143.3,143.29,11.48600266]
[1750348790642,5.17488612,143.31,143.29,11.48600266]
[1750348790847,5.17488612,143.3,143.29,11.48600266]
[1750348791065,5.17488612,143.31,143.29,11.48600266]
[1750348791272,6.36,143.32,143.29,11.48600266]
[1750348791470,5.1750739,143.31,143.29,11.48600266]
[1750348791783,5.1750739,143.31,143.3,11.48600266]